[Event "Vienna Championship-C 2022"]
[Site "Vienna"]
[Date "2022.09.22"]
[Round "6.9"]
[White "Gaspar, Zdravko"]
[Black "Ruck, Helmut"]
[Result "1/2-1/2"]
[ECO "D02"]
[WhiteElo "1538"]
[BlackElo "1662"]
[Annotator "NA RC COMBH"]
[PlyCount "139"]
[EventDate "2022.09.17"]
[EventType "swiss"]
[EventCountry "AUT"]
[SourceTitle "playchess.com"]
[Source "ChessBase"]
[SourceQuality "1"]
[TimeControl "5400+30"]

1. d4 {[%emt 0:10:17]} d5 {[%emt 0:03:17]} 2. Nf3 {[%emt 0:00:46]} Bf5 {[%emt 0:00:22]} 3. c3 {[%emt 0:00:15]} e6 {[%emt 0:00:06]} 4. Nbd2 {[%emt 0:03:30]} Nf6 {[%emt 0:00:12]} 5. e3 {[%emt 0:02:58]} Be7 {[%emt 0:01:35]} 6. Be2 {[%emt 0:00:16]} O-O {[%emt 0:00:45]} 7. O-O {[%emt 0:00:15]} Ne4 {[%emt 0:00:49]} 8. Nxe4 {[%emt 0:08:24]} Bxe4 {[%emt 0:00:27]} 9. b3 {[%emt 0:01:01]} Nd7 {[%emt 0:00:09]} 10. Bb2 {[%emt 0:00:16]} a6 {[%emt 0:00:23]} 11. Rc1 {[%emt 0:00:21]} Rc8 {[%emt 0:01:14]} 12. c4 {[%emt 0:00:28]} c6 {[%emt 0:00:46]} 13. Qd2 {[%emt 0:01:16]} Bd6 {[%emt 0:08:32]} 14. a3 {[%emt 1:07:27]} h6 {[%emt 0:06:03]} 15. Rfd1 {[%emt 0:00:00]} Nf6 {[%emt 0:02:49]} 16. Ne1 {[%emt 0:00:00]} Bg6 {[%emt 0:00:41]} 17. b4 {[%emt 0:00:00]} Ne4 {[%emt 0:00:26]} 18. Qc2 {[%emt 0:02:00]} Nxf2 {[%emt 0:04:36]} 19. Qb3 {[%emt 0:00:00]} Nxd1 {[%emt 0:00:40]} 20. Rxd1 {[%emt 0:00:00]} Be4 {[%emt 1:06:38]} 21. Nf3 {[%emt 0:00:00]} f5 {[%emt 0:00:00]} 22. c5 {[%emt 0:00:00]} Bc7 {[%emt 0:00:00]} 23. Qc3 {[%emt 0:00:00]} g5 {[%emt 0:00:00]} 24. Nd2 {[%emt 0:00:00]} Rf7 {[%emt 0:00:00]} 25. Nf3 {[%emt 0:00:00]} g4 {[%emt 0:00:00]} 26. Ne5 {[%emt 0:00:00]} Bxe5 {[%emt 0:00:00]} 27. dxe5 {[%emt 0:00:00]} Qg5 {[%emt 0:00:00]} 28. Rf1 {[%emt 0:00:00]} Rcf8 {[%emt 0:00:00]} 29. Rf4 {[%emt 0:00:00]} h5 {[%emt 0:00:00]} 30. Qe1 {[%emt 0:00:00]} Kg7 {[%emt 0:00:00]} 31. Bc3 {[%emt 0:00:00]} Kg6 {[%emt 0:00:00]} 32. Qf2 {[%emt 0:00:00]} Rh8 {[%emt 0:00:00]} 33. Kf1 {[%emt 0:00:00]} Rhh7 {[%emt 0:00:00]} 34. Ke1 {[%emt 0:00:00]} Qe7 {[%emt 0:00:00]} 35. Kd1 {[%emt 0:00:00]} h4 {[%emt 0:00:00]} 36. Qf1 {[%emt 0:00:00]} Kg7 {[%emt 0:00:00]} 37. Kd2 {[%emt 0:00:00]} Kf8 {[%emt 0:00:00]} 38. Bb2 {[%emt 0:00:00]} Qc7 {[%emt 0:00:00]} 39. Bd4 {[%emt 0:00:00]} Qb8 {[%emt 0:00:00]} 40. a4 {[%emt 0:00:00]} Qa7 {[%emt 0:00:00]} 41. Kc3 {[%emt 0:00:00]} Ke8 {[%emt 0:00:00]} 42. Kb3 {[%emt 0:00:00]} Ke7 {[%emt 0:11:00]} 43. Ka3 {[%emt 0:00:00]} Kf8 {[%emt 0:00:00]} 44. Kb3 {[%emt 0:00:00]} h3 {[%emt 0:00:00]} 45. g3 {[%emt 0:00:00]} Rhg7 {[%emt 0:00:00]} 46. Qe1 {[%emt 0:00:00]} Ke8 {[%emt 0:00:00]} 47. Qf2 {[%emt 0:00:00]} Ke7 {[%emt 0:00:00]} 48. Kc3 {[%emt 0:00:00]} a5 {[%emt 0:00:00]} 49. b5 {[%emt 0:00:00]} cxb5 {[%emt 0:00:00]} 50. Bxb5 {[%emt 0:00:00]} Qb8 {[%emt 0:00:00]} 51. Qb2 {[%emt 0:00:00]} Kf8 {[%emt 0:00:00]} 52. Kb3 {[%emt 0:00:00]} Kg8 {[%emt 0:00:00]} 53. Ka3 {[%emt 0:00:00]} Kh7 {[%emt 0:00:00]} 54. Qc3 {[%emt 0:00:00]} Qa8 {[%emt 0:00:00]} 55. Qe1 {[%emt 0:00:00]} Rg8 {[%emt 0:00:00]} 56. Qc1 {[%emt 0:01:56]} Qd8 {[%emt 0:00:00]} 57. Rf2 {[%emt 0:00:24]} Qc7 {[%emt 0:00:00]} 58. Rb2 {[%emt 0:00:18]} b6 {[%emt 0:00:00]} 59. c6 {[%emt 0:02:45]} Rb8 {[%emt 0:00:00]} 60. Rb3 {[%emt 0:00:26]} Kg6 {[%emt 0:00:00]} 61. Qb2 {[%emt 0:01:14]} Bf3 {[%emt 0:00:00]} 62. Bc3 {[%emt 0:01:23]} Rff8 {[%emt 0:00:00]} 63. Bd4 {[%emt 0:00:34]} Rfe8 {[%emt 0:00:00]} 64. Qc3 {[%emt 0:00:36]} Be4 {[%emt 0:00:00]} 65. Kb2 {[%emt 0:00:23]} Bf3 {[%emt 0:00:00]} 66. Qc1 {[%emt 0:00:37]} Rec8 {[%emt 0:00:00]} 67. Qa1 {[%emt 0:00:35]} Be4 {[%emt 0:00:00]} 68. Qa3 {[%emt 0:00:17]} Kf7 {[%emt 0:00:00]} 69. Qd6 {[%emt 0:00:29]} Bf3 {[%emt 0:00:00]} 70. Qa3 {[%emt 0:14:03]} 1/2-1/2

[Event "Vienna Championship-C 2022"]
[Site "Vienna"]
[Date "2022.09.22"]
[Round "6.10"]
[White "Schreib, Christian"]
[Black "Johnson, Roland E S"]
[Result "1/2-1/2"]
[ECO "C42"]
[WhiteElo "1589"]
[BlackElo "1691"]
[Annotator "NA RC COMBH"]
[PlyCount "92"]
[EventDate "2022.09.17"]
[EventType "swiss"]
[EventCountry "AUT"]
[SourceTitle "playchess.com"]
[Source "ChessBase"]
[SourceQuality "1"]
[TimeControl "5400+30"]

1. e4 {[%emt 0:00:06]} e5 {[%emt 0:00:07]} 2. Nf3 {[%emt 0:00:12]} Nf6 {[%emt 0:00:10]} 3. Nxe5 {[%emt 0:00:18]} Qe7 {[%emt 0:00:07]} 4. d4 {[%emt 0:00:35]} d6 {[%emt 0:00:11]} 5. Nf3 {[%emt 0:00:22]} Qxe4+ {[%emt 0:00:24]} 6. Be2 {[%emt 0:00:37]} Be7 {[%emt 0:00:38]} 7. Nc3 {[%emt 0:02:44]} Qe6 {[%emt 0:01:21]} 8. d5 {[%emt 0:00:44]} Qd7 {[%emt 0:00:22]} 9. O-O {[%emt 0:02:28]} O-O {[%emt 0:00:13]} 10. Re1 {[%emt 0:00:55]} b6 {[%emt 0:01:28]} 11. Bb5 {[%emt 0:01:57]} Qd8 {[%emt 0:00:17]} 12. Qe2 {[%emt 0:01:04]} a6 {[%emt 0:00:36]} 13. Qxe7 {[%emt 0:02:15]} Qxe7 {[%emt 0:00:08]} 14. Rxe7 {[%emt 0:00:11]} axb5 {[%emt 0:00:07]} 15. Bg5 {[%emt 0:04:14]} Nbd7 {[%emt 0:00:21]} 16. Bxf6 {[%emt 0:01:08]} Nxf6 {[%emt 0:00:07]} 17. b4 {[%emt 0:01:08]} Bb7 {[%emt 0:00:36]} 18. Rxc7 {[%emt 0:01:25]} Bxd5 {[%emt 0:00:11]} 19. Nxd5 {[%emt 0:00:50]} Nxd5 {[%emt 0:00:09]} 20. Rd7 {[%emt 0:01:26]} Nxb4 {[%emt 0:00:12]} 21. Rxd6 {[%emt 0:00:50]} Nxc2 {[%emt 0:00:13]} 22. Rc1 {[%emt 0:00:55]} Rxa2 {[%emt 0:00:08]} 23. Rd2 {[%emt 0:00:32]} Nb4 {[%emt 0:00:08]} 24. Rd6 {[%emt 0:03:49]} h6 {[%emt 0:02:21]} 25. h3 {[%emt 0:00:47]} Rb8 {[%emt 0:00:31]} 26. Rc7 {[%emt 0:01:35]} Rc2 {[%emt 0:00:33]} 27. Re7 {[%emt 0:00:32]} Rc6 {[%emt 0:00:43]} 28. Rdd7 {[%emt 0:00:33]} Rf8 {[%emt 0:00:16]} 29. Ne5 {[%emt 0:00:25]} Rf6 {[%emt 0:00:13]} 30. Rb7 {[%emt 0:01:17]} Nc6 {[%emt 0:00:44]} 31. Nd7 {[%emt 0:05:19]} Nxe7 {[%emt 0:00:10]} 32. Nxf6+ {[%emt 0:00:11]} gxf6 {[%emt 0:00:11]} 33. Rxe7 {[%emt 0:00:06]} Rb8 {[%emt 0:00:22]} 34. Re4 {[%emt 0:00:14]} Kg7 {[%emt 0:00:43]} 35. Rb4 {[%emt 0:00:08]} Kg6 {[%emt 0:00:17]} 36. Rxb5 {[%emt 0:00:08]} f5 {[%emt 0:00:11]} 37. g3 {[%emt 0:00:59]} h5 {[%emt 0:00:29]} 38. h4 {[%emt 0:00:19]} Kf6 {[%emt 0:00:20]} 39. Kg2 {[%emt 0:00:16]} Ke6 {[%emt 0:00:17]} 40. Kf3 {[%emt 0:00:13]} f6 {[%emt 0:00:32]} 41. Kf4 {[%emt 0:00:19]} Rb7 {[%emt 0:00:20]} 42. f3 {[%emt 0:03:02]} Rb8 {[%emt 0:00:17]} 43. g4 {[%emt 0:01:44]} fxg4 {[%emt 0:00:14]} 44. fxg4 {[%emt 0:00:13]} hxg4 {[%emt 0:00:06]} 45. Kxg4 {[%emt 0:00:12]} Kf7 {[%emt 0:00:37]} 46. Kf5 {[%emt 0:01:07]} Kg7 {[%emt 0:03:17]} 1/2-1/2

[Event "Vienna Championship-C 2022"]
[Site "Vienna"]
[Date "2022.09.22"]
[Round "6.11"]
[White "Aichinger, Johannes"]
[Black "Mair, Josef"]
[Result "0-1"]
[ECO "C57"]
[WhiteElo "1169"]
[BlackElo "1620"]
[Annotator "NA RC COMBH"]
[PlyCount "49"]
[EventDate "2022.09.17"]
[EventType "swiss"]
[EventCountry "AUT"]
[SourceTitle "playchess.com"]
[Source "ChessBase"]
[SourceQuality "1"]
[TimeControl "5400+30"]

1. e4 {[%emt 0:00:01]} e5 {[%emt 0:03:32]} 2. Nf3 {[%emt 0:00:03]} Nc6 {[%emt 0:00:13]} 3. Bc4 {[%emt 0:00:03]} Nf6 {[%emt 0:01:06]} 4. Ng5 {[%emt 0:00:07]} d5 {[%emt 0:01:48]} 5. exd5 {[%emt 0:00:05]} Nxd5 {[%emt 0:00:47]} 6. Nxf7 {[%emt 0:00:04]} Kxf7 {[%emt 0:01:41]} 7. Qf3+ {[%emt 0:00:05]} Ke6 {[%emt 0:01:33]} 8. Nc3 {[%emt 0:00:05]} Ncb4 {[%emt 0:00:48]} 9. a3 {[%emt 0:00:04]} Nxc2+ {[%emt 0:10:16]} 10. Kd1 {[%emt 0:00:08]} Nxa1 {[%emt 0:03:17]} 11. Bxd5+ {[%emt 0:00:09]} Kd7 {[%emt 0:02:35]} 12. Qf5+ {[%emt 0:00:45]} Kd6 {[%emt 0:09:04]} 13. Qf7 {[%emt 0:00:16]} Qe7 {[%emt 0:02:42]} 14. Qh5 {[%emt 0:02:42]} c6 {[%emt 0:07:35]} 15. d4 {[%emt 0:00:24]} cxd5 {[%emt 0:00:48]} 16. dxe5+ {[%emt 0:00:20]} Kc7 {[%emt 0:03:21]} 17. Nxd5+ {[%emt 0:00:09]} Kc6 {[%emt 0:00:59]} 18. Nxe7+ {[%emt 0:00:24]} Bxe7 {[%emt 0:00:11]} 19. Qf3+ {[%emt 0:00:08]} Kc7 {[%emt 0:01:01]} 20. Bf4 {[%emt 0:00:31]} Be6 {[%emt 0:00:31]} 21. Ke2 {[%emt 0:00:18]} Bc4+ {[%emt 0:01:55]} 22. Kd2 {[%emt 1:34:39]} Nb3+ {[%emt 0:45:47]} 23. Kc2 {[%emt 0:00:00]} Nd4+ {[%emt 0:00:00]} 24. Kd2 {[%emt 0:00:00]} Nxf3+ {[%emt 0:00:00]} 25. gxf3 {[%emt 0:00:00]} 0-1

[Event "Vienna Championship-C 2022"]
[Site "Vienna"]
[Date "2022.09.22"]
[Round "6.12"]
[White "Gockner, Hans"]
[Black "Niesswohl, Werner"]
[Result "1/2-1/2"]
[ECO "C44"]
[WhiteElo "1592"]
[BlackElo "1473"]
[Annotator "NA RC COMBH"]
[PlyCount "66"]
[EventDate "2022.09.17"]
[EventType "swiss"]
[EventCountry "AUT"]
[SourceTitle "playchess.com"]
[Source "ChessBase"]
[SourceQuality "1"]
[TimeControl "5400+30"]

1. e4 {[%emt 0:00:08]} e5 {[%emt 0:00:19]} 2. d4 {[%emt 0:01:00]} exd4 {[%emt 0:00:29]} 3. c3 {[%emt 0:00:07]} dxc3 {[%emt 0:01:02]} 4. Nxc3 {[%emt 0:00:16]} Nc6 {[%emt 0:00:49]} 5. Bc4 {[%emt 0:00:19]} Nf6 {[%emt 0:00:50]} 6. Nf3 {[%emt 0:00:44]} Bb4 {[%emt 0:01:35]} 7. e5 {[%emt 0:01:57]} Bxc3+ {[%emt 0:01:36]} 8. bxc3 {[%emt 0:00:17]} d5 {[%emt 0:02:33]} 9. Bb3 {[%emt 0:02:32]} Ne4 {[%emt 0:01:46]} 10. Bb2 {[%emt 0:03:25]} Be6 {[%emt 0:01:20]} 11. O-O {[%emt 0:00:28]} O-O {[%emt 0:01:01]} 12. Qe2 {[%emt 0:01:32]} Na5 {[%emt 0:01:44]} 13. Bc2 {[%emt 0:03:40]} Nc4 {[%emt 0:01:38]} 14. Bb3 {[%emt 0:00:39]} Nxb2 {[%emt 0:01:08]} 15. Qxb2 {[%emt 0:00:21]} c5 {[%emt 0:01:12]} 16. Rad1 {[%emt 0:01:14]} Qa5 {[%emt 0:01:26]} 17. Rc1 {[%emt 0:01:57]} c4 {[%emt 0:01:15]} 18. Bd1 {[%emt 0:01:22]} Nc5 {[%emt 0:02:51]} 19. Qc2 {[%emt 0:11:33]} g6 {[%emt 0:01:29]} 20. Nd4 {[%emt 0:02:35]} Bd7 {[%emt 0:01:57]} 21. Qb1 {[%emt 0:06:38]} Rab8 {[%emt 0:01:49]} 22. Bc2 {[%emt 0:05:42]} Qxc3 {[%emt 0:01:23]} 23. Bxg6 {[%emt 0:00:29]} Qxd4 {[%emt 0:00:57]} 24. Bxh7+ {[%emt 0:00:16]} Kh8 {[%emt 0:00:28]} 25. Rfe1 {[%emt 0:07:20]} Nd3 {[%emt 0:02:52]} 26. Bxd3 {[%emt 0:04:22]} cxd3 {[%emt 0:01:07]} 27. Rcd1 {[%emt 0:03:39]} d2 {[%emt 0:00:47]} 28. Re2 {[%emt 0:02:45]} Rg8 {[%emt 0:03:42]} 29. Rdxd2 {[%emt 0:02:37]} Qg4 {[%emt 0:02:17]} 30. f4 {[%emt 0:04:57]} Bf5 {[%emt 0:01:55]} 31. Qb2 {[%emt 0:01:07]} Be6 {[%emt 0:02:22]} 32. Rf2 {[%emt 0:01:22]} Qf5 {[%emt 0:00:46]} 33. Rf3 {[%emt 0:03:46]} Rg7 {[%emt 0:00:54]} 1/2-1/2

[Event "Vienna Championship-C 2022"]
[Site "Vienna"]
[Date "2022.09.23"]
[Round "7.3"]
[White "Gerold, Arnold"]
[Black "Brueggeboes, Anton"]
[Result "1/2-1/2"]
[ECO "B32"]
[WhiteElo "1708"]
[BlackElo "1506"]
[Annotator "NA RC COMBH"]
[PlyCount "59"]
[EventDate "2022.09.17"]
[EventType "swiss"]
[EventCountry "AUT"]
[SourceTitle "playchess.com"]
[Source "ChessBase"]
[SourceQuality "1"]
[TimeControl "5400+30"]

1. e4 {[%emt 1:31:00]} c5 {[%emt 1:31:00]} 2. Nf3 {[%emt 0:00:30]} Nc6 {[%emt 0:00:30]} 3. d4 {[%emt 0:00:30]} cxd4 {[%emt 0:00:30]} 4. Nxd4 {[%emt 0:00:30]} e5 {[%emt 0:00:30]} 5. Nb5 {[%emt 0:00:30]} d6 {[%emt 0:00:30]} 6. N1c3 {[%emt 0:00:30]} a6 {[%emt 0:00:30]} 7. Na3 {[%emt 0:00:30]} Be7 {[%emt 0:00:30]} 8. Nd5 {[%emt 0:00:30]} Nf6 {[%emt 0:00:30]} 9. Bd3 {[%emt 0:00:30]} Nxd5 {[%emt 0:00:30]} 10. exd5 {[%emt 0:00:30]} Qa5+ {[%emt 0:00:30]} 11. c3 {[%emt 0:00:30]} Qxd5 {[%emt 0:00:30]} 12. f3 {[%emt 0:00:30]} Be6 {[%emt 0:00:30]} 13. Qe2 {[%emt 0:00:30]} Qa5 {[%emt 0:00:30]} 14. Nc2 {[%emt 0:00:30]} O-O {[%emt 0:00:30]} 15. Be3 {[%emt 0:00:30]} Rac8 {[%emt 0:00:30]} 16. Qf2 {[%emt 0:00:30]} Qc7 {[%emt 0:00:30]} 17. Bb6 {[%emt 0:00:30]} Qd7 {[%emt 0:00:30]} 18. Ne3 {[%emt 0:00:30]} d5 {[%emt 0:00:30]} 19. Rd1 {[%emt 0:00:30]} Qe8 {[%emt 0:00:30]} 20. Nf5 {[%emt 0:00:30]} d4 {[%emt 0:00:30]} 21. cxd4 {[%emt 0:00:30]} Bb4+ {[%emt 0:00:30]} 22. Kf1 {[%emt 0:00:30]} Qd7 {[%emt 0:00:30]} 23. g4 {[%emt 0:00:30]} exd4 {[%emt 0:00:30]} 24. Bb1 {[%emt 0:00:30]} Qd5 {[%emt 0:00:30]} 25. Kg2 {[%emt 0:00:30]} Qb5 {[%emt 0:00:30]} 26. Qh4 {[%emt 0:00:30]} Bxf5 {[%emt 0:00:30]} 27. Bxf5 {[%emt 0:00:30]} Qe2+ {[%emt 0:00:30]} 28. Qf2 {[%emt 0:00:30]} Qxf2+ {[%emt 0:00:30]} 29. Kxf2 {[%emt 0:00:30]} Rce8 {[%emt 0:00:30]} 30. Bd7 {[%emt 0:00:30]} 1/2-1/2

[Event "Vienna Championship-C 2022"]
[Site "Vienna"]
[Date "2022.09.23"]
[Round "7.4"]
[White "Nicolussi, Hieronymus"]
[Black "Geyer, Guenter"]
[Result "1/2-1/2"]
[ECO "D00"]
[WhiteElo "1239"]
[BlackElo "1855"]
[Annotator "NA RC COMBH"]
[PlyCount "68"]
[EventDate "2022.09.17"]
[EventType "swiss"]
[EventCountry "AUT"]
[SourceTitle "playchess.com"]
[Source "ChessBase"]
[SourceQuality "1"]
[TimeControl "5400+30"]

1. d4 {[%emt 0:00:03]} Nc6 {[%emt 0:00:03]} 2. e3 {[%emt 0:01:26]} d5 {[%emt 0:02:49]} 3. Bd3 {[%emt 0:00:15]} Nf6 {[%emt 0:00:32]} 4. f4 {[%emt 0:00:19]} Bg4 {[%emt 0:01:20]} 5. Nf3 {[%emt 0:00:11]} Nb4 {[%emt 0:03:45]} 6. Nbd2 {[%emt 0:01:21]} Nxd3+ {[%emt 0:00:41]} 7. cxd3 {[%emt 0:00:16]} Bf5 {[%emt 0:01:44]} 8. Ne5 {[%emt 0:00:42]} c6 {[%emt 0:04:03]} 9. g4 {[%emt 0:03:24]} Bc8 {[%emt 0:00:48]} 10. g5 {[%emt 0:00:21]} Nd7 {[%emt 0:00:16]} 11. e4 {[%emt 0:01:50]} Nxe5 {[%emt 1:19:59]} 12. dxe5 {[%emt 1:26:22]} e6 {[%emt 0:00:00]} 13. Rg1 {[%emt 0:00:00]} Qb6 {[%emt 0:00:00]} 14. Rg3 {[%emt 0:00:00]} Bd7 {[%emt 0:00:00]} 15. Nb3 {[%emt 0:00:00]} d4 {[%emt 0:00:00]} 16. Qc2 {[%emt 0:00:00]} Rc8 {[%emt 0:00:00]} 17. Qc4 {[%emt 0:00:00]} c5 {[%emt 0:00:00]} 18. a4 {[%emt 0:00:00]} Qc7 {[%emt 0:00:00]} 19. Bd2 {[%emt 0:00:00]} a6 {[%emt 0:00:00]} 20. Rc1 {[%emt 0:00:00]} Qc6 {[%emt 0:00:00]} 21. a5 {[%emt 0:00:00]} Qa4 {[%emt 0:00:00]} 22. Qxa4 {[%emt 0:00:00]} Bxa4 {[%emt 0:00:00]} 23. Nxd4 {[%emt 0:00:00]} Rd8 {[%emt 0:00:00]} 24. Ne2 {[%emt 0:00:00]} Be7 {[%emt 0:00:00]} 25. Be3 {[%emt 0:00:00]} c4 {[%emt 0:00:00]} 26. dxc4 {[%emt 0:00:00]} O-O {[%emt 0:00:00]} 27. Nc3 {[%emt 0:00:00]} Bb4 {[%emt 0:00:00]} 28. Kf2 {[%emt 0:00:00]} Bc6 {[%emt 0:00:00]} 29. Kf3 {[%emt 0:00:00]} Bxa5 {[%emt 0:00:00]} 30. Ne2 {[%emt 0:00:00]} Rd3 {[%emt 0:00:00]} 31. Nc3 {[%emt 0:00:00]} Rfd8 {[%emt 0:00:00]} 32. Nd5 {[%emt 0:00:00]} exd5 {[%emt 0:00:00]} 33. exd5 {[%emt 0:00:00]} Bxd5+ {[%emt 0:00:00]} 34. cxd5 {[%emt 0:00:00]} R3xd5 {[%emt 0:11:30]} 1/2-1/2

[Event "Vienna Championship-C 2022"]
[Site "Vienna"]
[Date "2022.09.23"]
[Round "7.7"]
[White "Ganahl, Herbert"]
[Black "Brunner, Felix"]
[Result "0-1"]
[ECO "E61"]
[WhiteElo "1488"]
[BlackElo "1541"]
[Annotator "NA RC COMBH"]
[PlyCount "56"]
[EventDate "2022.09.17"]
[EventType "swiss"]
[EventCountry "AUT"]
[SourceTitle "playchess.com"]
[Source "ChessBase"]
[SourceQuality "1"]
[TimeControl "5400+30"]

1. Nf3 {[%emt 0:00:12]} Nf6 {[%emt 0:00:07]} 2. c4 {[%emt 0:00:16]} g6 {[%emt 0:00:11]} 3. Nc3 {[%emt 0:00:09]} Bg7 {[%emt 0:00:06]} 4. g3 {[%emt 0:00:11]} O-O {[%emt 0:02:42]} 5. d4 {[%emt 0:00:44]} d5 {[%emt 0:00:10]} 6. cxd5 {[%emt 0:01:17]} Nxd5 {[%emt 0:00:06]} 7. e4 {[%emt 0:04:02]} Nxc3 {[%emt 0:01:08]} 8. bxc3 {[%emt 0:00:06]} c5 {[%emt 0:00:05]} 9. Bb2 {[%emt 0:01:43]} Qa5 {[%emt 0:02:54]} 10. e5 {[%emt 0:03:38]} cxd4 {[%emt 0:03:04]} 11. Qxd4 {[%emt 0:01:12]} Nc6 {[%emt 0:00:48]} 12. Qe3 {[%emt 0:01:18]} Nxe5 {[%emt 0:01:35]} 13. Nxe5 {[%emt 0:00:48]} Bxe5 {[%emt 0:00:05]} 14. Bg2 {[%emt 0:00:19]} Be6 {[%emt 0:03:21]} 15. O-O {[%emt 0:01:07]} Rac8 {[%emt 0:01:03]} 16. Rfc1 {[%emt 0:02:02]} Rc7 {[%emt 0:05:09]} 17. a4 {[%emt 0:10:07]} Rfc8 {[%emt 0:09:33]} 18. Ra3 {[%emt 0:10:42]} b6 {[%emt 0:02:48]} 19. Bf3 {[%emt 0:05:31]} Bf6 {[%emt 0:01:19]} 20. Rd1 {[%emt 0:04:17]} Bxc3 {[%emt 0:05:37]} 21. Bxc3 {[%emt 0:03:31]} Rxc3 {[%emt 0:01:42]} 22. Rxc3 {[%emt 0:05:40]} Qxc3 {[%emt 0:00:07]} 23. Qxc3 {[%emt 0:07:03]} Rxc3 {[%emt 0:00:04]} 24. Rd8+ {[%emt 0:00:09]} Kg7 {[%emt 0:00:15]} 25. Kg2 {[%emt 0:00:50]} Kf6 {[%emt 0:02:38]} 26. Be2 {[%emt 0:01:58]} Bc4 {[%emt 0:04:06]} 27. Rd2 {[%emt 0:06:07]} Bxe2 {[%emt 0:00:59]} 28. Rxe2 {[%emt 0:00:02]} Ra3 {[%emt 0:00:03]} 0-1

[Event "Vienna Championship-C 2022"]
[Site "Vienna"]
[Date "2022.09.23"]
[Round "7.8"]
[White "Mair, Josef"]
[Black "Gaspar, Zdravko"]
[Result "0-1"]
[ECO "B17"]
[WhiteElo "1620"]
[BlackElo "1538"]
[Annotator "NA RC COMBH"]
[PlyCount "126"]
[EventDate "2022.09.17"]
[EventType "swiss"]
[EventCountry "AUT"]
[SourceTitle "playchess.com"]
[Source "ChessBase"]
[SourceQuality "1"]
[TimeControl "5400+30"]

1. e4 {[%emt 0:00:30]} c6 {[%emt 0:00:30]} 2. d4 {[%emt 0:00:52]} d5 {[%emt 0:00:00]} 3. Nc3 {[%emt 0:00:18]} dxe4 {[%emt 0:00:00]} 4. Nxe4 {[%emt 0:00:15]} Nd7 {[%emt 0:00:00]} 5. Nf3 {[%emt 0:00:25]} Ngf6 {[%emt 0:01:39]} 6. Ng3 {[%emt 0:00:01]} e6 {[%emt 0:00:19]} 7. Bd3 {[%emt 0:00:12]} Be7 {[%emt 0:01:33]} 8. O-O {[%emt 0:06:19]} Qc7 {[%emt 0:01:49]} 9. Re1 {[%emt 0:00:22]} b6 {[%emt 0:02:04]} 10. c4 {[%emt 0:00:56]} O-O {[%emt 0:00:50]} 11. h3 {[%emt 0:01:50]} Bb7 {[%emt 0:00:27]} 12. Be3 {[%emt 0:09:16]} Rad8 {[%emt 0:19:03]} 13. Rc1 {[%emt 0:00:10]} Qb8 {[%emt 0:00:24]} 14. Qd2 {[%emt 0:00:50]} Rfe8 {[%emt 0:11:11]} 15. Bf4 {[%emt 0:01:18]} Bd6 {[%emt 0:02:04]} 16. Bxd6 {[%emt 0:00:34]} Qxd6 {[%emt 0:00:15]} 17. Rcd1 {[%emt 0:02:59]} Nf8 {[%emt 0:02:08]} 18. Qg5 {[%emt 0:10:23]} h6 {[%emt 0:00:34]} 19. Qc1 {[%emt 0:01:04]} Qb8 {[%emt 0:00:37]} 20. Ne5 {[%emt 1:01:56]} Re7 {[%emt 0:00:31]} 21. Qe3 {[%emt 0:00:30]} Rc7 {[%emt 0:08:09]} 22. f4 {[%emt 0:00:00]} c5 {[%emt 0:00:16]} 23. dxc5 {[%emt 0:00:00]} Rxc5 {[%emt 0:00:48]} 24. Ne4 {[%emt 0:00:00]} Nxe4 {[%emt 0:00:33]} 25. Bxe4 {[%emt 0:00:00]} Bxe4 {[%emt 0:03:20]} 26. Qxe4 {[%emt 0:00:00]} Qc7 {[%emt 0:01:37]} 27. b3 {[%emt 0:00:00]} b5 {[%emt 0:00:52]} 28. cxb5 {[%emt 0:00:00]} Rxb5 {[%emt 0:00:38]} 29. Qc6 {[%emt 0:00:00]} Qxc6 {[%emt 0:05:39]} 30. Nxc6 {[%emt 0:04:30]} Ra8 {[%emt 0:00:57]} 31. Re5 {[%emt 0:00:00]} Rb6 {[%emt 0:01:40]} 32. Nd4 {[%emt 0:00:00]} Rd8 {[%emt 0:01:23]} 33. Kf2 {[%emt 0:00:00]} Rbd6 {[%emt 0:00:20]} 34. Ke3 {[%emt 0:00:00]} Ng6 {[%emt 0:08:27]} 35. Ra5 {[%emt 0:00:00]} a6 {[%emt 0:00:19]} 36. g3 {[%emt 0:00:00]} f6 {[%emt 0:00:41]} 37. f5 {[%emt 0:00:00]} exf5 {[%emt 0:01:52]} 38. Rxf5 {[%emt 0:00:00]} Ne5 {[%emt 0:00:20]} 39. Rf2 {[%emt 0:00:00]} Re8 {[%emt 0:02:19]} 40. Kf4 {[%emt 0:00:00]} Kf7 {[%emt 0:02:11]} 41. Rfd2 {[%emt 0:00:00]} Ng6+ {[%emt 0:03:26]} 42. Kf3 {[%emt 0:00:00]} Ne5+ {[%emt 0:01:14]} 43. Kf4 {[%emt 0:00:00]} Ng6+ {[%emt 0:04:03]} 44. Kf3 {[%emt 0:00:00]} Re5 {[%emt 0:00:28]} 45. Ne2 {[%emt 0:00:00]} Rde6 {[%emt 0:01:17]} 46. Rd7+ {[%emt 0:00:00]} Kg8 {[%emt 0:00:09]} 47. R1d2 {[%emt 0:00:00]} Re3+ {[%emt 0:03:07]} 48. Kf2 {[%emt 0:00:00]} R3e4 {[%emt 0:01:43]} 49. R7d6 {[%emt 0:00:00]} Rxe2+ {[%emt 0:04:34]} 50. Kf3 {[%emt 0:00:00]} R6e3+ {[%emt 0:00:29]} 51. Kg4 {[%emt 0:00:00]} Ne5+ {[%emt 0:00:25]} 52. Kf5 {[%emt 0:00:00]} Kh7 {[%emt 0:00:08]} 53. Rxe2 {[%emt 0:00:00]} Rxe2 {[%emt 0:00:06]} 54. Rxa6 {[%emt 0:00:00]} Rf2+ {[%emt 0:00:43]} 55. Ke4 {[%emt 0:00:00]} Rf3 {[%emt 0:00:49]} 56. b4 {[%emt 0:00:00]} Rxg3 {[%emt 0:00:06]} 57. b5 {[%emt 0:00:00]} Rc3 {[%emt 0:00:19]} 58. a4 {[%emt 0:00:00]} Rxh3 {[%emt 0:01:49]} 59. b6 {[%emt 0:00:00]} Rb3 {[%emt 0:06:46]} 60. a5 {[%emt 0:15:00]} Rb5 {[%emt 0:00:00]} 61. Ra7 {[%emt 0:00:00]} Nc6 {[%emt 0:00:00]} 62. Rc7 {[%emt 0:00:00]} Nxa5 {[%emt 0:00:00]} 63. Ra7 {[%emt 0:00:00]} Kg6 {[%emt 0:00:00]} 0-1